bitfinex-derivatives/quotes_BTCF0:USTF0_20210705
["timestamp","ask_amount","ask_price","bid_price","bid_amount"]
[1625460419248,0.24257544,34313.0,34312.0,6.32194047]
[1625460419649,0.24257544,34313.0,34312.0,2.1498117]
[1625460420200,0.24257544,34313.0,34312.0,6.35492591]
[1625460420749,0.24257544,34313.0,34312.0,6.36355173]
[1625460421203,0.24257544,34313.0,34312.0,6.35492591]
[1625460421507,0.002,34313.0,34312.0,6.35492591]
[1625460421618,0.002,34313.0,34312.0,6.44272591]
[1625460421753,0.002,34313.0,34312.0,6.45135056]
[1625460421855,0.004,34315.0,34313.0,0.057]
[1625460421956,0.008,34319.0,34313.0,0.057]
[1625460422055,0.008,34319.0,34314.0,0.0102803]
[1625460422154,0.008,34319.0,34314.0,0.1282803]
[1625460422356,0.008,34319.0,34318.0,5.70374223]
[1625460422456,0.008,34319.0,34318.0,5.91034223]
[1625460422556,0.0001,34321.0,34318.0,5.91034223]
[1625460422656,0.0001,34321.0,34320.0,4.78252632]
[1625460422757,0.0001,34321.0,34320.0,5.09552632]
[1625460422957,0.0001,34321.0,34320.0,5.15452632]
[1625460423057,0.0001,34321.0,34320.0,5.16478587]
[1625460423155,0.0001,34321.0,34320.0,5.17776664]
[1625460423358,0.0001,34321.0,34320.0,12.55026955]
[1625460423909,0.0001,34321.0,34320.0,12.65026955]
[1625460424008,0.0001,34321.0,34320.0,12.63728878]
[1625460424308,0.0001,34321.0,34320.0,12.65026809]
[1625460424409,0.008,34322.0,34320.0,12.64826809]
[1625460424513,0.008,34322.0,34321.0,0.0862]
[1625460424609,0.008,34322.0,34321.0,0.09646047]
[1625460424710,0.008,34322.0,34321.0,0.21446047]
[1625460424810,0.008,34322.0,34321.0,0.22743978]
[1625460425159,0.008,34322.0,34321.0,7.59473573]
[1625460425309,0.008,34322.0,34321.0,7.69473573]
[1625460425760,0.008,34322.0,34321.0,7.6861137]
[1625460427364,0.002,34322.0,34321.0,7.6861137]
[1625460427720,0.002,34322.0,34321.0,7.5999137]
[1625460428318,0.002,34322.0,34321.0,5.92552826]
[1625460431874,0.22198,34322.0,34321.0,5.86652826]
[1625460431975,0.22198,34322.0,34321.0,5.79726779]
[1625460432326,0.22198,34322.0,34321.0,4.29032089]
[1625460432526,0.22198,34322.0,34321.0,4.34932089]
[1625460432876,0.70313088,34322.0,34321.0,4.34932089]
[1625460432976,0.70313088,34322.0,34321.0,3.51356587]
[1625460435779,0.70313088,34322.0,34321.0,3.45456587]
[1625460436280,0.70113088,34322.0,34321.0,3.45456587]
[1625460436681,1.38843989,34322.0,34321.0,2.28249606]
[1625460436780,1.90396459,34322.0,34321.0,2.28249606]
[1625460436883,1.90396459,34322.0,34321.0,2.34149606]
[1625460439037,1.90396459,34322.0,34321.0,2.28249606]
[1625460439838,2.93488068,34322.0,34321.0,2.28249606]
[1625460440391,1.90396459,34322.0,34321.0,2.28249606]
[1625460442200,2.93486737,34322.0,34321.0,2.28249606]
[1625460442802,1.90396459,34322.0,34321.0,2.28249606]
[1625460443406,2.93480037,34322.0,34321.0,2.28249606]
[1625460444356,0.70113088,34322.0,34321.0,0.10435728]
[1625460444858,1.90391321,34322.0,34321.0,2.29142774]
[1625460445310,2.93474502,34322.0,34321.0,2.29142774]
[1625460452326,2.99374502,34322.0,34321.0,2.29142774]
[1625460452627,2.99374502,34322.0,34321.0,2.28707046]
[1625460452927,2.99374502,34322.0,34321.0,0.1]
[1625460452928,4.1964538,34322.0,34321.0,0.1]
[1625460454429,4.1964538,34322.0,34321.0,0.60515109]
[1625460454530,4.1964538,34322.0,34321.0,0.58745109]
[1625460454880,4.1964538,34322.0,34321.0,0.0823]
[1625460455231,4.1964538,34322.0,34321.0,0.59028926]
[1625460455785,4.1964538,34322.0,34321.0,0.59465152]
[1625460456082,4.2554538,34322.0,34321.0,0.0823]
[1625460456383,4.1964538,34322.0,34321.0,0.0823]
[1625460456584,5.57115299,34322.0,34321.0,0.08666225]
[1625460456685,5.63015299,34322.0,34321.0,0.08666225]
[1625460456885,5.63015299,34322.0,34321.0,0.0823]
[1625460457185,5.87072843,34322.0,34321.0,0.0823]
[1625460457986,5.87072843,34322.0,34321.0,0.0866624]
[1625460458287,5.87072843,34322.0,34321.0,0.0823]
[1625460459338,5.87072843,34322.0,34321.0,0.0866624]
[1625460460992,5.88520669,34322.0,34321.0,0.0866624]
[1625460461191,5.87072843,34322.0,34321.0,0.0866624]
[1625460461993,5.88520677,34322.0,34321.0,0.0866624]
[1625460472970,5.82620677,34322.0,34321.0,0.0866624]
[1625460473068,5.60622677,34322.0,34321.0,0.1456624]
[1625460473268,5.59174843,34322.0,34321.0,0.1456624]
[1625460474169,3.01434046,34322.0,34321.0,0.99865846]
[1625460474518,3.01434046,34322.0,34321.0,0.65746004]
[1625460474971,3.01434046,34322.0,34321.0,0.59846004]
[1625460475171,3.01434046,34322.0,34321.0,1.28066944]
[1625460476325,3.01434046,34322.0,34321.0,0.42780914]
[1625460477176,3.01434046,34322.0,34321.0,0.59808205]
[1625460477929,3.01434046,34322.0,34321.0,0.42767709]
[1625460479681,4.21574321,34322.0,34321.0,0.0866624]
[1625460480181,4.23021944,34322.0,34321.0,0.0866624]
[1625460480681,4.21574321,34322.0,34321.0,0.0866624]
[1625460481884,3.01434046,34322.0,34321.0,0.42766461]
[1625460483939,4.21647756,34322.0,34321.0,0.59864291]
[1625460484892,4.23095838,34322.0,34321.0,0.59864291]
[1625460485341,4.23095838,34322.0,34321.0,0.93990847]
[1625460486293,4.23095838,34322.0,34321.0,1.28166211]
[1625460486944,4.28995838,34322.0,34321.0,0.59864291]
[1625460487999,5.66562864,34322.0,34321.0,0.59864291]
[1625460488099,5.66562864,34322.0,34321.0,1.28250418]
[1625460489150,7.21338032,34322.0,34321.0,0.0866624]
[1625460489501,11.50638032,34322.0,34321.0,0.0866624]
[1625460489701,7.21338032,34322.0,34321.0,0.0866624]
[1625460489901,7.21338032,34322.0,34321.0,0.42904152]
[1625460490403,7.21338032,34322.0,34321.0,0.0866624]
[1625460490604,7.15438032,34322.0,34321.0,0.0866624]
[1625460490704,7.21338032,34322.0,34321.0,0.0866624]
[1625460491112,7.21338032,34322.0,34321.0,0.42902963]
[1625460491508,7.15438032,34322.0,34321.0,0.42902963]
[1625460491609,7.15438032,34322.0,34321.0,0.0866624]
[1625460492069,7.15438032,34322.0,34321.0,1.2855082]
[1625460492159,7.21338032,34322.0,34321.0,1.2855082]
[1625460492459,7.15438032,34322.0,34321.0,1.2855082]
[1625460492962,7.15438032,34322.0,34321.0,2.31279436]
[1625460492963,5.60662864,34322.0,34321.0,2.31279436]
[1625460493820,5.66562864,34322.0,34321.0,2.31279436]
[1625460494868,5.66562864,34322.0,34321.0,1.2855082]
[1625460495322,7.2152947,34322.0,34321.0,0.94297639]
[1625460495424,7.1562947,34322.0,34321.0,0.94297639]
[1625460496222,7.1562947,34322.0,34321.0,1.28631943]
[1625460496622,7.2152947,34322.0,34321.0,1.28631943]
[1625460496722,7.4946047,34322.0,34321.0,1.28631943]
[1625460498830,7.4946047,34322.0,34321.0,0.60045346]
[1625460498929,7.4356047,34322.0,34321.0,0.60045346]
[1625460500033,2.6241832,34322.0,34321.0,0.0866624]
[1625460501088,2.3448732,34322.0,34321.0,0.0866624]
[1625460501636,7.16769629,34322.0,34321.0,1.28797921]
[1625460502888,7.38219629,34322.0,34321.0,1.28797921]
[1625460506693,7.38219629,34322.0,34321.0,2.31818822]
[1625460508047,7.38219629,34322.0,34321.0,1.97548733]
[1625460508147,7.38219629,34322.0,34321.0,0.94527832]
[1625460508750,7.38219629,34322.0,34321.0,0.60233753]
[1625460509152,7.38219629,34322.0,34321.0,0.0866624]
[1625460510604,7.38219629,34322.0,34321.0,0.25859751]
[1625460512460,7.38219629,34322.0,34321.0,0.0866624]
[1625460513208,7.38219629,34322.0,34321.0,0.0043624]
[1625460514563,7.38219629,34322.0,34321.0,0.17633514]
[1625460515168,7.38219629,34322.0,34321.0,0.0043624]
[1625460519528,7.38219629,34322.0,34321.0,0.17616937]
[1625460520079,7.38219629,34322.0,34321.0,0.0043624]
[1625460521230,7.38219629,34322.0,34321.0,0.17621934]
[1625460523285,7.38219629,34322.0,34321.0,0.0043624]
[1625460525942,7.16769629,34322.0,34321.0,0.0043624]
[1625460526043,7.16769629,34322.0,34321.0,0.2913424]
[1625460526497,7.16769629,34322.0,34321.0,0.80682614]
[1625460526796,12.24209629,34322.0,34321.0,0.80682614]
[1625460526946,12.24209629,34322.0,34321.0,0.2913424]
[1625460527196,12.24209629,34322.0,34321.0,0.0043624]
[1625460531852,7.16769629,34322.0,34321.0,0.0043624]
[1625460533960,12.39339629,34322.0,34321.0,0.0043624]
[1625460534061,12.47979629,34322.0,34321.0,0.0043624]
[1625460534164,12.51431559,34322.0,34320.0,0.17187009]
[1625460534259,13.01431559,34322.0,34320.0,0.17187009]
[1625460534460,0.04900282,34321.0,34320.0,0.17187009]
[1625460534559,0.16700282,34321.0,34320.0,0.17187009]
[1625460534762,8.22946582,34321.0,34314.0,0.52128794]
[1625460534962,8.26398599,34321.0,34314.0,0.52128794]
[1625460535110,8.0937913,34317.0,34314.0,0.006]
[1625460535209,8.3801213,34317.0,34314.0,0.006]
[1625460535310,8.4391213,34317.0,34314.0,0.006]
[1625460535559,8.45360515,34317.0,34314.0,0.006]
[1625460535661,8.93475603,34317.0,34314.0,0.006]
[1625460538612,9.02095603,34317.0,34314.0,0.006]
[1625460539666,8.93475603,34317.0,34314.0,0.006]
[1625460546133,9.43475603,34317.0,34314.0,0.006]
[1625460546786,0.01448281,34316.0,34314.0,0.006]
[1625460546886,0.07348281,34316.0,34314.0,0.006]
[1625460546990,0.13248281,34316.0,34314.0,0.006]
[1625460547087,0.63248281,34316.0,34314.0,0.006]
[1625460547238,8.0701554,34315.0,34314.0,0.006]
[1625460547338,8.20263828,34315.0,34311.0,0.004]
[1625460547689,6.35291669,34312.0,34311.0,0.004]
[1625460547789,6.95206757,34312.0,34311.0,0.004]
[1625460548138,6.96655041,34312.0,34311.0,0.004]
[1625460549690,6.95206757,34312.0,34311.0,0.004]
[1625460549992,6.9665505,34312.0,34311.0,0.004]
[1625460551995,11.0052505,34312.0,34311.0,0.004]
[1625460553651,11.5052505,34312.0,34311.0,0.004]
[1625460553800,11.0052505,34312.0,34311.0,0.004]
[1625460554806,11.5052505,34312.0,34311.0,0.004]
[1625460556310,11.5052505,34312.0,34306.0,0.004]
[1625460556611,0.01448391,34311.0,34306.0,0.004]
[1625460556711,0.07348391,34311.0,34306.0,0.004]
[1625460556810,0.13248391,34311.0,34306.0,0.004]
[1625460557111,4.79139546,34307.0,34306.0,0.004]
[1625460557210,5.03527546,34307.0,34306.0,0.004]
[1625460557311,5.15327546,34307.0,34306.0,0.004]
[1625460557863,5.63442634,34307.0,34306.0,0.004]
[1625460559769,7.17311688,34307.0,34306.0,0.004]
[1625460560321,7.18760164,34307.0,34306.0,0.004]
[1625460563982,7.12860164,34307.0,34306.0,0.004]
[1625460564081,7.12860164,34307.0,34306.0,0.33917]
[1625460564331,5.5899111,34307.0,34306.0,0.33917]
[1625460564431,5.3460311,34307.0,34306.0,0.33917]
[1625460564886,5.4050311,34307.0,34306.0,0.33917]
[1625460565385,5.3460311,34307.0,34306.0,0.33917]
[1625460566390,5.4050311,34307.0,34306.0,0.33917]
[1625460566787,5.3460311,34307.0,34306.0,0.33917]
[1625460568089,5.3460311,34307.0,34306.0,0.34353374]
[1625460568339,5.3460311,34307.0,34306.0,0.33953374]
[1625460571396,3.97713429,34307.0,34306.0,0.33953374]
[1625460572147,3.96264953,34307.0,34306.0,0.33953374]
[1625460572448,3.96264953,34307.0,34306.0,0.09018704]
[1625460572649,3.97713736,34307.0,34306.0,0.09018704]
[1625460572897,3.97713736,34307.0,34306.0,0.00436374]
[1625460573549,5.34651946,34307.0,34306.0,0.00436374]
[1625460574000,5.34651946,34307.0,34305.0,0.00436376]
[1625460574301,0.01448856,34306.0,34305.0,0.00436376]
[1625460574399,0.13248856,34306.0,34305.0,0.00436376]
[1625460574705,4.92311654,34306.0,34305.0,0.00436376]
[1625460575053,4.92311654,34306.0,34304.0,0.00436397]
[1625460575352,0.01448893,34305.0,34304.0,0.00436397]
[1625460575452,0.13248893,34305.0,34304.0,0.00436397]
[1625460575554,4.92098676,34305.0,34303.0,0.004364]
[1625460575803,0.01448912,34304.0,34303.0,0.004364]
[1625460575902,0.13248912,34304.0,34303.0,0.004364]
[1625460576005,0.61364,34304.0,34303.0,0.004364]
[1625460576106,4.0353966,34304.0,34303.0,0.004364]
[1625460577156,5.40377762,34304.0,34303.0,0.004364]
[1625460577406,5.40377762,34304.0,34302.0,0.00436425]
[1625460577808,0.01448963,34303.0,34302.0,0.00436425]
[1625460577907,0.07348963,34303.0,34302.0,0.00436425]
[1625460578008,0.13248963,34303.0,34302.0,0.00436425]
[1625460578209,4.92012012,34303.0,34302.0,0.00436425]
[1625460581065,4.92012012,34303.0,34301.0,0.004]
[1625460581315,6.45771417,34303.0,34301.0,0.004]
[1625460581515,0.01449067,34302.0,34301.0,0.004]
[1625460581616,0.32248067,34302.0,34301.0,0.004]
[1625460581715,0.38148067,34302.0,34301.0,0.004]
[1625460582068,6.93846708,34302.0,34301.0,0.004]
[1625460585273,11.19456708,34302.0,34301.0,0.004]
[1625460585726,11.69456708,34302.0,34301.0,0.004]
[1625460586281,11.69456708,34302.0,34296.0,0.004]
[1625460586680,0.01448876,34301.0,34296.0,0.004]
[1625460586781,0.07348876,34301.0,34296.0,0.004]
[1625460586881,4.76447925,34297.0,34296.0,0.004]
[1625460586981,4.82347925,34297.0,34296.0,0.004]
[1625460587082,4.88247925,34297.0,34296.0,0.004]
[1625460587283,4.89696798,34297.0,34296.0,0.004]
[1625460587482,4.88247925,34297.0,34296.0,0.00836568]
[1625460587784,4.88247925,34297.0,34296.0,0.004]
[1625460588033,5.36363013,34297.0,34296.0,0.004]
[1625460590693,5.37811898,34297.0,34296.0,0.004]
[1625460591193,5.36363013,34297.0,34296.0,0.004]
[1625460591395,6.89352036,34297.0,34296.0,0.004]
[1625460593801,5.36363013,34297.0,34296.0,0.004]
[1625460598659,6.89379668,34297.0,34296.0,0.004]
[1625460599310,6.89379668,34297.0,34291.0,0.60569673]
[1625460599609,6.89379668,34297.0,34291.0,0.26186877]
[1625460599610,3.3995348,34292.0,34291.0,0.26186877]
[1625460599710,3.6961748,34292.0,34291.0,0.26186877]
[1625460600062,4.17732568,34292.0,34291.0,0.26186877]
[1625460600163,4.17732568,34292.0,34291.0,0.60568968]
[1625460600463,4.23632568,34292.0,34291.0,0.61005561]
[1625460600664,4.23632568,34292.0,34291.0,0.86354862]
[1625460600967,4.23632568,34292.0,34291.0,0.60568442]
[1625460601466,4.23632568,34292.0,34291.0,0.61005044]
[1625460603169,4.23632568,34292.0,34291.0,0.09432052]
[1625460603721,5.59527164,34292.0,34291.0,0.00836602]
[1625460604774,5.59527164,34292.0,34291.0,0.004]
[1625460605324,5.60976345,34292.0,34291.0,0.004]
[1625460605526,5.60976345,34292.0,34288.0,0.00994635]
[1625460605776,0.01449181,34291.0,34287.0,0.17989271]
[1625460605883,0.07349181,34291.0,34289.0,0.00436576]
[1625460605982,0.13249181,34291.0,34289.0,0.00436576]
[1625460606081,0.24057544,34290.0,34288.0,0.00436579]
[1625460606180,0.29957544,34290.0,34288.0,0.00436579]
[1625460606533,4.74727058,34289.0,34288.0,0.00436579]
[1625460606633,4.80627058,34289.0,34288.0,0.00436579]
[1625460606831,4.80627058,34289.0,34287.0,0.008]
[1625460607484,4.74546164,34288.0,34287.0,0.008]
[1625460607584,4.80446164,34288.0,34287.0,0.008]
[1625460607933,4.80446164,34288.0,34287.0,0.01236617]
[1625460608134,5.04503708,34288.0,34287.0,0.01236617]
[1625460608334,5.10403708,34288.0,34287.0,0.00436617]
[1625460608433,5.11852999,34288.0,34285.0,0.17585351]
[1625460608784,5.10403708,34288.0,34285.0,0.004]
[1625460609234,0.01449366,34287.0,34285.0,0.004]
[1625460609335,0.13249366,34287.0,34285.0,0.004]
[1625460609434,0.13249366,34287.0,34283.0,0.41078983]
[1625460609534,0.13249366,34287.0,34281.0,0.6954531]
[1625460609535,4.73658072,34286.0,34281.0,0.008]
[1625460609634,4.85458072,34286.0,34281.0,0.008]
[1625460610134,0.72172632,34282.0,34281.0,0.008]
[1625460610237,4.4508235,34282.0,34281.0,0.008]
[1625460611339,4.4468235,34282.0,34277.0,0.3433422]
[1625460611838,0.50696037,34278.0,34277.0,0.3433422]
[1625460611940,0.56596037,34278.0,34277.0,0.3433422]
[1625460612041,0.62496037,34278.0,34277.0,0.3433422]
[1625460612138,0.86553581,34278.0,34277.0,0.3433422]
[1625460612338,0.86553581,34278.0,34277.0,0.34770998]
[1625460612438,1.20359261,34278.0,34277.0,0.34770998]
[1625460612639,1.20359261,34278.0,34277.0,0.3433422]
[1625460612939,1.20359261,34278.0,34273.0,1.20178671]
[1625460612940,2.5522789,34278.0,34274.0,0.34342194]
[1625460613040,4.9013,34277.0,34274.0,0.34342194]
[1625460613138,5.0193,34277.0,34274.0,0.34342194]
[1625460613389,2.18993215,34275.0,34270.0,0.85794507]
[1625460613489,2.44872215,34275.0,34270.0,0.85794507]
[1625460613593,2.50772215,34275.0,34270.0,0.85794507]
[1625460613689,2.50772215,34275.0,34271.0,0.00436888]
[1625460613793,0.33689974,34272.0,34271.0,0.00436888]
[1625460613890,0.39589974,34272.0,34271.0,0.00436888]
[1625460614142,1.11762606,34272.0,34271.0,0.00436888]
[1625460614244,0.78072632,34272.0,34271.0,0.00436888]
[1625460614744,0.78072632,34272.0,34269.0,1.20113358]
[1625460614745,0.78072632,34272.0,34269.0,0.85769158]
[1625460615197,0.78072632,34272.0,34270.0,0.34291928]
[1625460615646,0.78072632,34272.0,34269.0,0.51477246]
[1625460615647,0.78072632,34272.0,34269.0,0.85769351]
[1625460616151,0.24057544,34270.0,34268.0,0.34292207]
[1625460616348,0.29957544,34270.0,34268.0,0.34292207]
[1625460616648,0.29957544,34270.0,34267.0,0.85707086]
[1625460617049,0.29957544,34270.0,34267.0,0.91607086]
[1625460617150,0.29957544,34270.0,34267.0,0.34268776]
[1625460617701,0.29957544,34270.0,34266.0,0.34268121]
[1625460618049,0.29957544,34270.0,34266.0,0.40168121]
[1625460618149,0.24057544,34267.0,34266.0,0.40168121]
[1625460618249,0.29957544,34267.0,34266.0,0.40168121]
[1625460618449,0.29957544,34267.0,34266.0,0.34268121]
[1625460618749,0.29957544,34267.0,34266.0,0.51401961]
[1625460619302,0.29957544,34267.0,34264.0,0.34249168]
[1625460619853,0.29957544,34267.0,34263.0,0.85624189]
[1625460620154,0.48115088,34264.0,34263.0,0.85624189]
[1625460620254,0.54015088,34264.0,34263.0,0.85624189]
[1625460620458,0.54015088,34264.0,34263.0,0.34250436]
[1625460621106,0.54015088,34264.0,34260.0,0.3422627]
[1625460622008,0.54015088,34264.0,34260.0,0.4012627]
[1625460622159,0.24057544,34261.0,34260.0,0.4012627]
[1625460622261,0.54777544,34261.0,34260.0,0.3422627]
[1625460622562,0.54777544,34261.0,34260.0,0.4012627]
[1625460622961,0.54777544,34261.0,34260.0,0.059]
[1625460623612,0.54777544,34261.0,34258.0,0.34199285]
[1625460624162,0.24057544,34259.0,34258.0,0.34199285]
[1625460624763,0.24057544,34259.0,34256.0,0.34179996]
[1625460625066,0.24057544,34259.0,34255.0,0.34181447]
[1625460625414,0.29957544,34259.0,34255.0,0.34181447]
[1625460625518,0.29957544,34259.0,34254.0,0.85453615]
[1625460625618,0.29957544,34259.0,34254.0,0.91353615]
[1625460626117,0.29957544,34259.0,34254.0,0.059]
[1625460626218,0.24057544,34255.0,34254.0,0.059]
[1625460630832,0.24057544,34255.0,34253.0,0.24457544]
[1625460631083,0.29957544,34255.0,34253.0,0.24457544]
[1625460631182,0.24057544,34255.0,34253.0,0.24457544]
[1625460631385,0.29957544,34255.0,34253.0,0.24457544]
[1625460631932,0.29957544,34255.0,34253.0,0.30357544]
[1625460632334,0.24057544,34255.0,34253.0,0.30357544]
[1625460632436,0.29957544,34255.0,34253.0,0.30357544]
[1625460633550,0.24057544,34255.0,34253.0,0.30357544]
[1625460634036,0.24057544,34255.0,34254.0,3.837]
[1625460634138,0.24057544,34255.0,34254.0,3.896]
[1625460635091,0.24057544,34255.0,34254.0,0.059]
[1625460635192,0.24057544,34255.0,34253.0,0.24457544]
[1625460635292,0.51657544,34255.0,34254.0,0.059]
[1625460635394,0.51657544,34255.0,34253.0,0.24457544]
[1625460635492,0.51657544,34255.0,34253.0,0.36257544]
[1625460635794,0.51657544,34255.0,34253.0,0.30357544]
[1625460638298,0.51657544,34255.0,34253.0,0.29957544]
[1625460638548,0.51657544,34255.0,34253.0,0.24057544]
[1625460638699,0.57557544,34255.0,34253.0,0.24057544]
[1625460638799,0.57557544,34255.0,34253.0,0.29957544]
[1625460639699,0.51657544,34255.0,34253.0,0.29957544]
[1625460641152,0.51657544,34255.0,34253.0,0.35857544]
[1625460641250,0.51657544,34255.0,34253.0,0.29957544]
[1625460641351,0.51657544,34255.0,34254.0,0.00436908]
[1625460641556,0.57557544,34255.0,34254.0,0.00436908]
[1625460641652,0.57557544,34255.0,34253.0,0.24057544]
[1625460641953,0.57557544,34255.0,34250.0,1.09454676]
[1625460642152,0.57557544,34255.0,34250.0,1.15354676]
[1625460642253,0.57557544,34255.0,34250.0,0.85397132]
[1625460642451,0.48115088,34251.0,34250.0,0.85397132]
[1625460642551,0.54015088,34251.0,34250.0,0.91297132]
[1625460642655,0.48115088,34251.0,34250.0,0.059]
[1625460642753,0.48115088,34251.0,34250.0,0.06336578]
[1625460645459,0.48115088,34251.0,34250.0,0.00436578]
[1625460645859,0.48115088,34251.0,34250.0,0.06336578]
[1625460645959,0.48115088,34251.0,34248.0,0.00437415]
[1625460646409,0.48115088,34251.0,34248.0,0.06337415]
[1625460646761,0.48115088,34251.0,34249.0,0.00437411]
[1625460646963,0.48115088,34251.0,34249.0,0.06337411]
[1625460647311,0.48115088,34251.0,34250.0,0.00437406]
[1625460647411,0.48115088,34251.0,34250.0,0.06337406]
[1625460647912,0.48115088,34251.0,34250.0,0.33037406]
[1625460648112,0.48115088,34251.0,34250.0,0.38937406]
[1625460648314,0.48115088,34251.0,34250.0,0.73103058]
[1625460648514,0.48115088,34251.0,34250.0,0.97160602]
[1625460648663,0.48115088,34251.0,34250.0,0.6299495]
[1625460648914,0.48115088,34251.0,34250.0,0.5709495]
[1625460649013,0.48115088,34251.0,34250.0,0.6299495]
[1625460649114,0.48115088,34251.0,34250.0,0.5709495]
[1625460650867,0.48115088,34251.0,34250.0,0.3039495]
[1625460651419,0.48115088,34251.0,34250.0,0.3629495]
[1625460652022,0.48115088,34251.0,34250.0,0.3039495]
[1625460652269,0.48115088,34251.0,34250.0,0.3629495]
[1625460652471,0.48115088,34251.0,34250.0,0.3039495]
[1625460652969,0.48115088,34251.0,34250.0,0.64583097]
[1625460654922,0.48115088,34251.0,34250.0,0.81702026]
[1625460655522,0.0884,34270.0,34250.0,0.81702026]
[1625460655624,1.65327426,34263.0,34250.0,1.09904026]
[1625460655722,0.067,34258.0,34250.0,1.09904026]
[1625460655823,0.008,34258.0,34251.0,0.00437334]
[1625460655924,0.008,34258.0,34251.0,0.12237334]
[1625460656327,0.002,34253.0,34251.0,0.12237334]
[1625460656427,0.002,34253.0,34252.0,1.19706244]
[1625460656544,0.002,34253.0,34252.0,1.74158638]
[1625460656630,0.002,34253.0,34252.0,1.80058638]
[1625460657039,0.002,34253.0,34252.0,5.39403874]
[1625460657932,0.0001,34257.0,34252.0,5.39403874]
[1625460658332,0.0001,34257.0,34253.0,0.00437295]
[1625460658432,0.0001,34257.0,34253.0,0.12237295]
[1625460658532,0.0001,34257.0,34256.0,2.70640096]
[1625460658633,0.0001,34257.0,34256.0,2.82440096]
[1625460658884,0.0001,34257.0,34256.0,4.02780412]
[1625460659034,0.0001,34257.0,34256.0,3.96880412]
[1625460659235,0.006,34258.0,34256.0,4.02180412]
[1625460659687,0.006,34258.0,34257.0,0.00437277]
[1625460659784,0.006,34258.0,34257.0,0.28708277]
[1625460660038,0.006,34258.0,34257.0,0.34608277]
[1625460660138,0.006,34258.0,34257.0,1.88768628]
[1625460660240,0.006,34258.0,34257.0,1.82868628]
[1625460660539,0.006,34258.0,34257.0,1.88768628]
[1625460660740,0.006,34258.0,34257.0,1.82868628]
[1625460660840,0.006,34258.0,34257.0,1.88768628]
[1625460660993,0.006,34258.0,34257.0,1.82868628]
[1625460661191,0.006,34258.0,34257.0,1.88768628]
[1625460662143,0.006,34258.0,34257.0,3.08683309]
[1625460662245,0.84340262,34269.0,34257.0,3.08083309]
[1625460662543,0.84340262,34269.0,34268.0,0.48115088]
[1625460662644,0.33739477,34269.0,34268.0,0.71934088]
[1625460662844,0.33739477,34269.0,34268.0,0.72370699]
[1625460663147,0.50639722,34269.0,34268.0,0.72370699]
[1625460663697,0.8441059,34269.0,34268.0,0.72370699]
[1625460664398,0.50639722,34269.0,34268.0,0.72370699]
[1625460665498,1.51998668,34269.0,34268.0,0.72370699]
[1625460665698,1.51998668,34269.0,34268.0,0.48551699]
[1625460666750,1.51998668,34269.0,34268.0,0.48115088]
[1625460667402,2.70342362,34269.0,34268.0,0.48115088]
[1625460668557,2.76242362,34269.0,34268.0,0.48115088]
[1625460668657,2.70342362,34269.0,34268.0,0.48115088]
[1625460668906,2.76242362,34269.0,34268.0,0.48115088]
[1625460669007,2.70342362,34269.0,34268.0,0.48115088]
[1625460669208,4.05705587,34269.0,34268.0,0.48115088]
[1625460669308,4.11605587,34269.0,34268.0,0.48115088]
[1625460669561,2.76242362,34269.0,34268.0,0.48115088]
[1625460669710,2.76242362,34269.0,34268.0,0.54015088]
[1625460669910,2.76242362,34269.0,34268.0,0.48115088]
[1625460670862,4.1176811,34269.0,34268.0,0.48115088]
[1625460676326,4.0586811,34269.0,34268.0,0.48115088]
[1625460676426,0.30902,34270.0,34268.0,0.48115088]
[1625460676526,0.36802,34270.0,34268.0,0.48115088]
[1625460676929,4.06883668,34269.0,34268.0,0.48115088]
[1625460677129,4.12783668,34269.0,34268.0,0.48115088]
[1625460678080,4.06883668,34269.0,34268.0,0.48115088]
[1625460678381,4.06883668,34269.0,34268.0,0.54015088]
[1625460679085,4.06883668,34269.0,34268.0,0.88461702]
[1625460679486,4.06883668,34269.0,34268.0,0.48115088]
[1625460679686,4.12783668,34269.0,34268.0,0.48115088]
[1625460679885,4.14234072,34269.0,34268.0,0.48115088]
[1625460680193,4.12783668,34269.0,34268.0,0.48115088]
[1625460681496,4.14234061,34269.0,34268.0,0.48115088]
[1625460682998,4.14234061,34269.0,34268.0,0.24057544]
[1625460683097,5.6799457,34269.0,34268.0,0.24057544]
[1625460684646,5.92052114,34269.0,34268.0,0.24057544]
[1625460687050,5.92052114,34269.0,34268.0,0.24494407]
[1625460687301,5.92052114,34269.0,34268.0,0.24057544]
[1625460687402,1.85168446,34269.0,34268.0,0.24057544]
[1625460687603,1.85168446,34269.0,34268.0,0.24494399]
[1625460688104,3.72439212,34269.0,34268.0,0.24494399]
[1625460688204,5.93753019,34269.0,34268.0,0.24494399]
[1625460691716,5.93753019,34269.0,34268.0,0.24057544]
[1625460692566,5.99653019,34269.0,34268.0,0.24057544]
[1625460697980,5.99653019,34269.0,34266.0,0.004]
[1625460698090,7.69877433,34269.0,34266.0,0.004]
[1625460698431,0.57350589,34268.0,34266.0,0.004]
[1625460698531,0.63250589,34268.0,34266.0,0.004]
[1625460698630,0.6670851,34268.0,34266.0,0.004]
[1625460698829,0.48115088,34267.0,34266.0,0.004]
[1625460698934,1.14824819,34267.0,34266.0,0.004]
[1625460699531,8.44933612,34267.0,34266.0,0.004]
[1625460699632,8.44933612,34267.0,34262.0,0.008]
[1625460699731,0.088,34266.0,34262.0,0.008]
[1625460699831,0.206,34266.0,34262.0,0.008]
[1625460699932,0.5,34265.0,34262.0,0.008]
[1625460700032,0.91666751,34265.0,34262.0,0.008]
[1625460700235,0.01451751,34264.0,34262.0,0.008]
[1625460700334,7.28427745,34263.0,34261.0,0.008]
[1625460700433,7.34327745,34263.0,34261.0,0.008]
[1625460700533,7.40227745,34263.0,34261.0,0.008]
[1625460700836,0.31409284,34262.0,34261.0,0.008]
[1625460700939,4.60710571,34262.0,34261.0,0.008]
[1625460701838,4.69500571,34262.0,34261.0,0.008]
[1625460701939,4.60710571,34262.0,34261.0,0.008]
[1625460703348,4.59710571,34262.0,34260.0,0.008]
[1625460703649,4.68470571,34262.0,34260.0,0.008]
[1625460703750,4.2448415,34261.0,34260.0,0.008]
[1625460703848,4.3038415,34261.0,34260.0,0.008]
[1625460703949,4.3628415,34261.0,34260.0,0.008]
[1625460704851,4.60341694,34261.0,34260.0,0.008]
[1625460706303,4.60341694,34261.0,34258.0,0.24057544]
[1625460706503,4.22516458,34259.0,34258.0,0.24057544]
[1625460706706,4.28416458,34259.0,34258.0,0.24057544]
[1625460708909,4.34316458,34259.0,34258.0,0.24057544]
[1625460709711,4.28416458,34259.0,34258.0,0.24057544]